[Event "GrandPrix_29.05"]
[Site "Chess.com"]
[Date "2020.05.29"]
[Round "5"]
[White "etserga"]
[Black "SpasKozhuharov"]
[Result "0-1"]
[WhiteElo "2188"]
[BlackElo "2276"]
[TimeControl "600+2"]
[EndTime "11:33:52 PDT"]
[Termination "SpasKozhuharov won by resignation"]

1. Nf3 {[%clk 0:09:57.3]} 1... d5 {[%clk 0:09:57.7]} 2. e3 {[%clk 0:09:57.6]}
2... Nf6 {[%clk 0:09:56.7]} 3. c4 {[%clk 0:09:57.3]} 3... e6 {[%clk 0:09:55.5]}
4. b3 {[%clk 0:09:57.4]} 4... Be7 {[%clk 0:09:48.4]} 5. Bb2 {[%clk 0:09:56.9]}
5... O-O {[%clk 0:09:49.6]} 6. Nc3 {[%clk 0:09:57.9]} 6... b6 {[%clk 0:09:44.5]}
7. g3 {[%clk 0:09:56.5]} 7... Bb7 {[%clk 0:09:41.5]} 8. Bg2 {[%clk 0:09:56.2]}
8... c5 {[%clk 0:09:16.5]} 9. O-O {[%clk 0:09:53.2]} 9... Nbd7 {[%clk
0:09:09.4]} 10. Qe2 {[%clk 0:09:30.3]} 10... Ne4 {[%clk 0:08:52.8]} 11. Rad1
{[%clk 0:09:11.2]} 11... Bf6 {[%clk 0:08:47.2]} 12. cxd5 {[%clk 0:09:00.2]}
12... exd5 {[%clk 0:08:43.4]} 13. d4 {[%clk 0:08:40.3]} 13... Qe7 {[%clk
0:07:31.9]} 14. Na4 {[%clk 0:08:30.5]} 14... Rfc8 {[%clk 0:06:47.5]} 15. dxc5
{[%clk 0:07:25]} 15... bxc5 {[%clk 0:06:40.4]} 16. Bxf6 {[%clk 0:06:59.2]} 16...
Qxf6 {[%clk 0:06:39.1]} 17. Rfe1 {[%clk 0:06:30.5]} 17... Nb6 {[%clk 0:06:34.2]}
18. Qb2 {[%clk 0:05:32.4]} 18... Nxa4 {[%clk 0:06:07.9]} 19. Qxf6 {[%clk
0:05:31.2]} 19... Nxf6 {[%clk 0:06:09.1]} 20. bxa4 {[%clk 0:05:30.1]} 20... Ne4
{[%clk 0:06:04.8]} 21. Rc1 {[%clk 0:05:00.9]} 21... f6 {[%clk 0:05:53.4]} 22.
Red1 {[%clk 0:04:54.6]} 22... Rab8 {[%clk 0:05:22]} 23. Ne1 {[%clk 0:04:24.6]}
23... c4 {[%clk 0:04:16.4]} 24. Rd4 {[%clk 0:04:07.3]} 24... f5 {[%clk
0:03:56.1]} 25. h3 {[%clk 0:04:01.2]} 25... Bc6 {[%clk 0:03:54.3]} 26. g4 {[%clk
0:03:53.2]} 26... g6 {[%clk 0:03:47]} 27. gxf5 {[%clk 0:03:23.1]} 27... gxf5
{[%clk 0:03:48.9]} 28. Nf3 {[%clk 0:03:23.5]} 28... Rb2 {[%clk 0:03:41.9]} 29.
Ne5 {[%clk 0:03:19.5]} 29... Bb7 {[%clk 0:03:30.7]} 30. h4 {[%clk 0:02:58.8]}
30... Kg7 {[%clk 0:03:16.9]} 31. a5 {[%clk 0:01:43.3]} 31... Kf6 {[%clk
0:03:13.1]} 32. a6 {[%clk 0:01:40.8]} 32... Kxe5 {[%clk 0:03:05.7]} 33. axb7
{[%clk 0:01:39.7]} 33... Rxb7 {[%clk 0:03:07.2]} 34. f3 {[%clk 0:01:40.4]} 34...
Nf6 {[%clk 0:02:56.4]} 35. Bh3 {[%clk 0:01:31]} 35... Rg8+ {[%clk 0:02:47.9]}
36. Kf1 {[%clk 0:01:26.6]} 36... Rg3 {[%clk 0:02:43.2]} 37. Bg2 {[%clk
0:01:07.7]} 37... Rb2 {[%clk 0:02:41.8]} 38. Bh1 {[%clk 0:01:07.5]} 38... Rh3
{[%clk 0:02:16]} 39. Kg1 {[%clk 0:01:06]} 39... Rxa2 {[%clk 0:02:08.6]} 40. Rcd1
{[%clk 0:00:58.7]} 40... Rg3+ {[%clk 0:01:45.7]} 41. Kf1 {[%clk 0:00:58.7]}
41... Rh2 {[%clk 0:01:34.8]} 42. f4+ {[%clk 0:00:56.3]} 42... Ke6 {[%clk
0:01:29.6]} 43. Bxd5+ {[%clk 0:00:56.9]} 43... Nxd5 {[%clk 0:01:30.9]} 44. Rxd5
{[%clk 0:00:58]} 44... Rh1+ {[%clk 0:01:01.2]} 45. Kf2 {[%clk 0:00:57]} 45...
Rxd1 {[%clk 0:01:02.5]} 46. Rxd1 {[%clk 0:00:52.8]} 46... Rh3 {[%clk 0:01:04]}
47. Ra1 {[%clk 0:00:34.5]} 47... c3 {[%clk 0:00:48.5]} 48. Ke2 {[%clk
0:00:30.9]} 48... Rh2+ {[%clk 0:00:38.4]} 49. Kd3 {[%clk 0:00:31.2]} 49... c2
{[%clk 0:00:37.1]} 50. Kc3 {[%clk 0:00:32.1]} 50... Kd5 {[%clk 0:00:32.6]} 51.
Ra5+ {[%clk 0:00:31.1]} 51... Ke4 {[%clk 0:00:27.8]} 52. Kb2 {[%clk 0:00:27.7]}
52... Rxh4 {[%clk 0:00:19.2]} 53. Kxc2 {[%clk 0:00:17.4]} 53... Kxe3 {[%clk
0:00:19.8]} 54. Rxf5 {[%clk 0:00:17]} 54... Rxf4 {[%clk 0:00:20.6]} 55. Rh5
{[%clk 0:00:14.3]} 55... Rf7 {[%clk 0:00:21.1]} 56. Kd1 {[%clk 0:00:12.4]} 56...
Kf3 {[%clk 0:00:22]} 57. Kd2 {[%clk 0:00:12.3]} 57... Re7 {[%clk 0:00:21.6]} 58.
Kd3 {[%clk 0:00:11.3]} 58... Kg4 {[%clk 0:00:22.2]} 59. Rh6 {[%clk 0:00:11.4]}
59... Kg5 {[%clk 0:00:22.1]} 60. Rh1 {[%clk 0:00:12]} 60... h5 {[%clk
0:00:23.3]} 61. Rg1+ {[%clk 0:00:13.3]} 61... Kf4 {[%clk 0:00:24.4]} 62. Rh1
{[%clk 0:00:09.6]} 62... Kg4 {[%clk 0:00:24.2]} 63. Rg1+ {[%clk 0:00:10.3]}
63... Kf3 {[%clk 0:00:25]} 64. Rh1 {[%clk 0:00:10]} 64... Rd7+ {[%clk
0:00:26.1]} 65. Kc4 {[%clk 0:00:10.1]} 65... Rh7 {[%clk 0:00:28]} 66. Kd5 {[%clk
0:00:11.1]} 66... h4 {[%clk 0:00:29]} 67. Ke5 {[%clk 0:00:12.8]} 67... h3 {[%clk
0:00:30]} 68. Kf5 {[%clk 0:00:13.6]} 68... h2 {[%clk 0:00:31]} 69. Kg6 {[%clk
0:00:14.7]} 69... Kg2 {[%clk 0:00:30.7]} 0-1

[Event "GrandPrix_29.05"]
[Site "Chess.com"]
[Date "2020.05.29"]
[Round "5"]
[White "GadimbayliA"]
[Black "crazyboy26"]
[Result "1/2-1/2"]
[WhiteElo "2500"]
[BlackElo "2371"]
[TimeControl "600+2"]
[EndTime "11:33:54 PDT"]
[Termination "Game drawn by agreement"]

1. e4 {[%clk 0:10:01.9]} 1... Nc6 {[%clk 0:09:57.3]} 2. Nf3 {[%clk 0:10:02.4]}
2... d6 {[%clk 0:09:56.6]} 3. d4 {[%clk 0:10:03.1]} 3... Nf6 {[%clk 0:09:55.6]}
4. Nc3 {[%clk 0:10:03.9]} 4... g6 {[%clk 0:09:56.2]} 5. Be2 {[%clk 0:10:01.7]}
5... Bg7 {[%clk 0:09:55.2]} 6. O-O {[%clk 0:10:03.2]} 6... O-O {[%clk
0:09:54.7]} 7. d5 {[%clk 0:10:04.7]} 7... Nb8 {[%clk 0:09:54.3]} 8. Re1 {[%clk
0:10:05.8]} 8... c6 {[%clk 0:09:39]} 9. a4 {[%clk 0:10:06.6]} 9... Bg4 {[%clk
0:09:38.8]} 10. Be3 {[%clk 0:10:05.5]} 10... Qa5 {[%clk 0:09:05.5]} 11. Nd4
{[%clk 0:09:19.1]} 11... Bxe2 {[%clk 0:08:15]} 12. Qxe2 {[%clk 0:09:21]} 12...
cxd5 {[%clk 0:07:29.2]} 13. Nb3 {[%clk 0:09:21.8]} 13... Qc7 {[%clk 0:06:17.2]}
14. exd5 {[%clk 0:09:19.4]} 14... Nbd7 {[%clk 0:05:54.7]} 15. Bd4 {[%clk
0:09:10]} 15... a6 {[%clk 0:05:42.2]} 16. a5 {[%clk 0:09:03.8]} 16... Rac8
{[%clk 0:05:35]} 17. Rac1 {[%clk 0:08:51.8]} 17... Rfe8 {[%clk 0:05:33.2]} 18.
Qf3 {[%clk 0:08:38.4]} 18... Ne5 {[%clk 0:05:03.4]} 19. Bxe5 {[%clk 0:08:09.6]}
19... dxe5 {[%clk 0:05:05.3]} 20. Na4 {[%clk 0:08:10.7]} 20... e4 {[%clk
0:04:59.9]} 21. Qd1 {[%clk 0:08:03.6]} 21... Bh6 {[%clk 0:04:39.4]} 22. Ra1
{[%clk 0:06:47.7]} 22... Qxc2 {[%clk 0:04:16.9]} 23. Nc3 {[%clk 0:06:48]} 23...
Qxb2 {[%clk 0:03:55.9]} 24. Nxe4 {[%clk 0:06:48]} 24... Nxe4 {[%clk 0:03:33.4]}
25. Rxe4 {[%clk 0:06:49.9]} 25... Rc2 {[%clk 0:03:21.5]} 26. Rb1 {[%clk
0:06:48.4]} 26... Qa2 {[%clk 0:03:13.7]} 27. Ra4 {[%clk 0:06:09.5]} 27... Qxa4
{[%clk 0:03:12.9]} 28. Qxc2 {[%clk 0:06:10.4]} 28... Bf4 {[%clk 0:02:44.2]} 29.
g3 {[%clk 0:05:58.3]} 29... Bd6 {[%clk 0:02:43.3]} 30. h4 {[%clk 0:05:53]} 30...
Qg4 {[%clk 0:02:21.3]} 31. Rc1 {[%clk 0:05:26.2]} 31... h5 {[%clk 0:02:16.4]}
32. Qd3 {[%clk 0:05:24.3]} 32... Rc8 {[%clk 0:02:13]} 33. Rd1 {[%clk 0:04:35.8]}
33... Qb4 {[%clk 0:01:57.6]} 34. Qe3 {[%clk 0:04:17.1]} 34... Rc4 {[%clk
0:01:24.3]} 35. Rd3 {[%clk 0:03:24]} 35... Re4 {[%clk 0:01:20]} 36. Qf3 {[%clk
0:03:24.8]} 36... Re1+ {[%clk 0:00:38.4]} 37. Kg2 {[%clk 0:03:19.9]} 37... Qe4
{[%clk 0:00:33.1]} 38. Nd2 {[%clk 0:02:54.6]} 38... Qxf3+ {[%clk 0:00:28.5]} 39.
Kxf3 {[%clk 0:02:56.5]} 39... Ra1 {[%clk 0:00:25.8]} 40. Nc4 {[%clk 0:02:57.4]}
40... Bc5 {[%clk 0:00:10.9]} 41. Rd2 {[%clk 0:02:03.2]} 41... Ra4 {[%clk
0:00:10.4]} 42. Rc2 {[%clk 0:02:04.2]} 42... Bb4 {[%clk 0:00:09.1]} 43. Re2
{[%clk 0:01:35.8]} 43... Bxa5 {[%clk 0:00:06.3]} 44. Nxa5 {[%clk 0:01:30.9]}
44... Rxa5 {[%clk 0:00:08.2]} 45. Rxe7 {[%clk 0:01:32.4]} 45... Rxd5 {[%clk
0:00:07.5]} 46. Rxb7 {[%clk 0:01:33.7]} 46... Rf5+ {[%clk 0:00:08]} 47. Ke3
{[%clk 0:01:34.1]} 47... Ra5 {[%clk 0:00:08]} 48. Ra7 {[%clk 0:01:32.6]} 48...
Kg7 {[%clk 0:00:08.9]} 49. Kf3 {[%clk 0:01:31.7]} 49... Kf6 {[%clk 0:00:10]} 50.
Ke3 {[%clk 0:01:32.7]} 50... Ke6 {[%clk 0:00:10.7]} 51. Kf3 {[%clk 0:01:33.4]}
51... Ra3+ {[%clk 0:00:10.2]} 52. Kg2 {[%clk 0:01:27.6]} 52... a5 {[%clk
0:00:10.6]} 53. Ra6+ {[%clk 0:01:28.2]} 53... Ke5 {[%clk 0:00:11.5]} 54. Ra7
{[%clk 0:01:30.1]} 54... f6 {[%clk 0:00:12.4]} 55. Re7+ {[%clk 0:01:30.6]} 55...
Kf5 {[%clk 0:00:12.9]} 56. Ra7 {[%clk 0:01:32.5]} 56... a4 {[%clk 0:00:13.2]}
57. Ra5+ {[%clk 0:01:33.4]} 57... Ke4 {[%clk 0:00:13.2]} 58. Ra6 {[%clk
0:01:33.5]} 58... Ke5 {[%clk 0:00:12.8]} 59. Ra5+ {[%clk 0:01:34.5]} 59... Ke6
{[%clk 0:00:13.8]} 60. Ra6+ {[%clk 0:01:35.7]} 60... Kf7 {[%clk 0:00:14.7]} 61.
Ra7+ {[%clk 0:01:37]} 61... Kg8 {[%clk 0:00:08.8]} 62. Ra6 {[%clk 0:01:12.6]}
62... Kg7 {[%clk 0:00:09.3]} 63. Ra7+ {[%clk 0:01:13.8]} 63... Kh6 {[%clk
0:00:10.3]} 64. Ra6 {[%clk 0:01:06.9]} 64... f5 {[%clk 0:00:10.7]} 65. Ra7
{[%clk 0:01:04]} 65... Ra1 {[%clk 0:00:10.9]} 66. Kh2 {[%clk 0:00:44.8]} 66...
a3 {[%clk 0:00:08.1]} 67. Kg2 {[%clk 0:00:45.7]} 67... a2 {[%clk 0:00:08.1]} 68.
f4 {[%clk 0:00:40.5]} 68... Rd1 {[%clk 0:00:07]} 69. Rxa2 {[%clk 0:00:40.8]}
69... Rd7 {[%clk 0:00:07.1]} 1/2-1/2

[Event "GrandPrix_29.05"]
[Site "Chess.com"]
[Date "2020.05.29"]
[Round "5"]
[White "Bengalas"]
[Black "Ward-Tsh"]
[Result "1-0"]
[WhiteElo "2180"]
[BlackElo "2162"]
[TimeControl "600+2"]
[EndTime "11:33:57 PDT"]
[Termination "Bengalas won on time"]

1. d4 {[%clk 0:10:01.9]} 1... d5 {[%clk 0:10:00.8]} 2. c4 {[%clk 0:10:02]} 2...
c6 {[%clk 0:10:02.5]} 3. Nf3 {[%clk 0:10:03.1]} 3... Nf6 {[%clk 0:10:04.2]} 4.
e3 {[%clk 0:10:04.2]} 4... e6 {[%clk 0:10:05.3]} 5. Nbd2 {[%clk 0:10:04.7]} 5...
Nbd7 {[%clk 0:10:02.6]} 6. b3 {[%clk 0:10:05.6]} 6... c5 {[%clk 0:10:02.7]} 7.
Bb2 {[%clk 0:09:58.2]} 7... cxd4 {[%clk 0:10:03.2]} 8. exd4 {[%clk 0:09:58.9]}
8... Bd6 {[%clk 0:10:03.4]} 9. Bd3 {[%clk 0:09:59.1]} 9... O-O {[%clk
0:10:02.4]} 10. O-O {[%clk 0:09:59.9]} 10... b6 {[%clk 0:10:02.4]} 11. Qe2
{[%clk 0:09:51.1]} 11... Re8 {[%clk 0:09:59.9]} 12. Ne5 {[%clk 0:09:50.1]} 12...
Bb7 {[%clk 0:10:00.1]} 13. Rad1 {[%clk 0:09:47.4]} 13... Nf8 {[%clk 0:10:00.7]}
14. f4 {[%clk 0:09:06.7]} 14... Rc8 {[%clk 0:09:56.8]} 15. g3 {[%clk 0:08:25.8]}
15... Ng6 {[%clk 0:09:51.8]} 16. h4 {[%clk 0:08:06.1]} 16... Ne7 {[%clk
0:09:51.1]} 17. g4 {[%clk 0:07:50.9]} 17... g6 {[%clk 0:08:58]} 18. Ndf3 {[%clk
0:06:21.2]} 18... Ne4 {[%clk 0:08:56.4]} 19. Bxe4 {[%clk 0:05:54.3]} 19... dxe4
{[%clk 0:08:56.7]} 20. Ng5 {[%clk 0:05:55.9]} 20... Rf8 {[%clk 0:06:31.3]} 21.
Nxe4 {[%clk 0:05:49.9]} 21... f5 {[%clk 0:05:51]} 22. Ng5 {[%clk 0:05:34.6]}
22... Rf6 {[%clk 0:05:47.8]} 23. Nef7 {[%clk 0:04:32.9]} 23... Qd7 {[%clk
0:05:22.9]} 24. d5 {[%clk 0:03:41.9]} 24... Bc5+ {[%clk 0:05:17.2]} 25. Kh2
{[%clk 0:03:41.5]} 25... Rxf7 {[%clk 0:05:07.9]} 26. dxe6 {[%clk 0:03:40.7]}
26... Qc6 {[%clk 0:05:07.7]} 27. exf7+ {[%clk 0:03:09.2]} 27... Kf8 {[%clk
0:05:06.9]} 28. Nxh7+ {[%clk 0:00:38.5]} 28... Kxf7 {[%clk 0:05:04]} 29. Ng5+
{[%clk 0:00:39.4]} 29... Kf8 {[%clk 0:04:28.6]} 30. Ne6+ {[%clk 0:00:26.1]}
30... Kf7 {[%clk 0:04:25.1]} 31. Nd8+ {[%clk 0:00:24.7]} 31... Rxd8 {[%clk
0:04:25.7]} 32. Rxd8 {[%clk 0:00:26.3]} 32... fxg4 {[%clk 0:04:15.4]} 33. Qxg4
{[%clk 0:00:15.8]} 33... Nf5 {[%clk 0:04:15.7]} 34. Rfd1 {[%clk 0:00:12.6]}
34... Be7 {[%clk 0:03:36.5]} 35. R8d5 {[%clk 0:00:10.5]} 35... Nxh4 {[%clk
0:03:02.9]} 36. Re1 {[%clk 0:00:07.2]} 36... Nf5 {[%clk 0:02:47.4]} 37. Rxf5+
{[%clk 0:00:07.9]} 37... gxf5 {[%clk 0:02:47.8]} 38. Qxf5+ {[%clk 0:00:09.5]}
38... Ke8 {[%clk 0:02:44.9]} 39. Qh5+ {[%clk 0:00:10.4]} 39... Kd7 {[%clk
0:01:40.2]} 40. Qd5+ {[%clk 0:00:11.1]} 40... Qxd5 {[%clk 0:01:39.7]} 41. cxd5
{[%clk 0:00:12.6]} 41... Bxd5 {[%clk 0:01:41.6]} 42. Kg3 {[%clk 0:00:13.7]}
42... Bd6 {[%clk 0:01:21.2]} 43. Be5 {[%clk 0:00:14.4]} 43... Bb4 {[%clk
0:01:20.4]} 44. Rd1 {[%clk 0:00:15.4]} 44... Ke6 {[%clk 0:01:21.2]} 45. Bb8
{[%clk 0:00:16.4]} 45... Be4 {[%clk 0:01:08.4]} 46. Bxa7 {[%clk 0:00:16.4]}
46... Bc2 {[%clk 0:01:00.7]} 47. Rc1 {[%clk 0:00:15.3]} 47... Be4 {[%clk
0:00:52.7]} 48. Bxb6 {[%clk 0:00:15.4]} 48... Kf5 {[%clk 0:00:51.8]} 49. Be3
{[%clk 0:00:13.6]} 49... Bd5 {[%clk 0:00:38.6]} 50. Rd1 {[%clk 0:00:11.5]} 50...
Be6 {[%clk 0:00:36.7]} 51. Rd4 {[%clk 0:00:08]} 51... Bc5 {[%clk 0:00:30.4]} 52.
Rd3 {[%clk 0:00:08.7]} 52... Bb4 {[%clk 0:00:30.5]} 53. Rd8 {[%clk 0:00:08.1]}
53... Be1+ {[%clk 0:00:21.8]} 54. Bf2 {[%clk 0:00:09.1]} 54... Bb4 {[%clk
0:00:22.4]} 55. Rb8 {[%clk 0:00:06.7]} 55... Bd6 {[%clk 0:00:22.8]} 56. Rb5+
{[%clk 0:00:07.3]} 56... Ke4 {[%clk 0:00:23.8]} 57. Rb6 {[%clk 0:00:03.8]} 57...
Bxf4+ {[%clk 0:00:23.4]} 58. Kg2 {[%clk 0:00:05.4]} 58... Bd5 {[%clk 0:00:20.9]}
59. Kf1 {[%clk 0:00:06.3]} 59... Bc7 {[%clk 0:00:18.7]} 60. Rh6 {[%clk
0:00:06.1]} 60... Kd3 {[%clk 0:00:15.6]} 61. Be1 {[%clk 0:00:04.6]} 61... Kc2
{[%clk 0:00:08.7]} 62. Rh5 {[%clk 0:00:05.6]} 1-0

[Event "GrandPrix_29.05"]
[Site "Chess.com"]
[Date "2020.05.29"]
[Round "5"]
[White "ZoranRunic1"]
[Black "wnstop"]
[Result "1-0"]
[WhiteElo "2224"]
[BlackElo "2132"]
[TimeControl "600+2"]
[EndTime "11:33:59 PDT"]
[Termination "ZoranRunic1 won by resignation"]

1. e4 {[%clk 0:09:51]} 1... c5 {[%clk 0:09:57.9]} 2. Nf3 {[%clk 0:09:48.7]} 2...
Nc6 {[%clk 0:09:59.2]} 3. d4 {[%clk 0:09:47.6]} 3... cxd4 {[%clk 0:10:01.1]} 4.
Nxd4 {[%clk 0:09:48.5]} 4... e5 {[%clk 0:10:02.7]} 5. Nb5 {[%clk 0:09:47.4]}
5... d6 {[%clk 0:10:03.9]} 6. N1c3 {[%clk 0:09:45.9]} 6... a6 {[%clk 0:10:04.5]}
7. Na3 {[%clk 0:09:45.9]} 7... Be7 {[%clk 0:10:04.8]} 8. Nc4 {[%clk 0:09:37.8]}
8... b5 {[%clk 0:10:04.3]} 9. Ne3 {[%clk 0:09:37.8]} 9... Nf6 {[%clk 0:10:05.8]}
10. g3 {[%clk 0:08:51.6]} 10... O-O {[%clk 0:10:02.9]} 11. Bg2 {[%clk
0:08:50.3]} 11... b4 {[%clk 0:10:03.2]} 12. Ncd5 {[%clk 0:08:48.8]} 12... Nxd5
{[%clk 0:10:04.3]} 13. exd5 {[%clk 0:08:20.2]} 13... Nb8 {[%clk 0:09:25]} 14. a3
{[%clk 0:08:13.2]} 14... bxa3 {[%clk 0:08:56.4]} 15. Rxa3 {[%clk 0:08:12.8]}
15... f5 {[%clk 0:08:50.8]} 16. O-O {[%clk 0:08:11.9]} 16... Nd7 {[%clk
0:08:30.7]} 17. Nc4 {[%clk 0:08:10]} 17... a5 {[%clk 0:07:17.7]} 18. Re1 {[%clk
0:08:04.4]} 18... Qc7 {[%clk 0:06:25.3]} 19. b3 {[%clk 0:07:57.9]} 19... f4
{[%clk 0:05:40.6]} 20. Bd2 {[%clk 0:07:28.1]} 20... a4 {[%clk 0:05:27.2]} 21.
Qa1 {[%clk 0:07:17.2]} 21... f3 {[%clk 0:05:17.4]} 22. Bf1 {[%clk 0:07:01.3]}
22... Bb7 {[%clk 0:05:15.2]} 23. Ne3 {[%clk 0:05:45.1]} 23... axb3 {[%clk
0:05:06.4]} 24. cxb3 {[%clk 0:05:43.6]} 24... Nc5 {[%clk 0:04:58.5]} 25. Bc4
{[%clk 0:04:58.8]} 25... Ne4 {[%clk 0:04:34.3]} 26. Ba5 {[%clk 0:04:53.8]} 26...
Qd7 {[%clk 0:04:27.6]} 27. Qb1 {[%clk 0:04:22.3]} 27... Nd2 {[%clk 0:04:04]} 28.
Qd3 {[%clk 0:03:22.8]} 28... Nxc4 {[%clk 0:03:58]} 29. bxc4 {[%clk 0:03:22.5]}
29... Bg5 {[%clk 0:03:45.5]} 30. Qf1 {[%clk 0:02:52.4]} 30... Bd8 {[%clk
0:01:27.1]} 31. Rea1 {[%clk 0:02:47]} 31... Bf6 {[%clk 0:01:25]} 32. Bb4 {[%clk
0:02:39.6]} 32... Rxa3 {[%clk 0:01:22.4]} 33. Rxa3 {[%clk 0:02:39.2]} 33... e4
{[%clk 0:01:17.3]} 34. Bc3 {[%clk 0:02:36.2]} 34... Bg5 {[%clk 0:01:16.9]} 35.
Bd4 {[%clk 0:02:36.2]} 35... Qc8 {[%clk 0:01:15.1]} 36. Rc3 {[%clk 0:02:29.3]}
36... Ba6 {[%clk 0:01:14.7]} 37. Qc1 {[%clk 0:02:27.7]} 37... Qh3 {[%clk
0:01:13.9]} 38. Qf1 {[%clk 0:02:27.9]} 38... Qd7 {[%clk 0:00:57.1]} 39. Qb1
{[%clk 0:02:22.1]} 39... Re8 {[%clk 0:00:31.9]} 40. Qf1 {[%clk 0:02:14.6]} 40...
Rc8 {[%clk 0:00:32]} 41. h4 {[%clk 0:02:09.1]} 41... Bd8 {[%clk 0:00:20]} 42.
Kh2 {[%clk 0:02:07.6]} 42... g5 {[%clk 0:00:14.6]} 43. Qh3 {[%clk 0:01:53.2]}
43... Qxh3+ {[%clk 0:00:13.1]} 44. Kxh3 {[%clk 0:01:54]} 44... gxh4 {[%clk
0:00:14.6]} 45. gxh4 {[%clk 0:01:55]} 45... Rb8 {[%clk 0:00:10.6]} 46. Rc1
{[%clk 0:01:53.2]} 46... Bc8+ {[%clk 0:00:11.1]} 47. Kh2 {[%clk 0:01:52.3]}
47... Kf7 {[%clk 0:00:08.2]} 48. Rg1 {[%clk 0:01:48]} 48... Bf6 {[%clk
0:00:09.2]} 49. Bxf6 {[%clk 0:01:47.4]} 49... Kxf6 {[%clk 0:00:11.1]} 50. Rg8
{[%clk 0:01:47]} 50... Ra8 {[%clk 0:00:03.8]} 51. Re8 {[%clk 0:01:45.6]} 51...
Bb7 {[%clk 0:00:04.1]} 52. Rxe4 {[%clk 0:01:45]} 52... Rg8 {[%clk 0:00:03.9]}
53. Rf4+ {[%clk 0:01:41.9]} 53... Ke5 {[%clk 0:00:05.2]} 54. Rxf3 {[%clk
0:01:42.1]} 54... Bc8 {[%clk 0:00:06.3]} 55. Rf7 {[%clk 0:01:28]} 55... h6
{[%clk 0:00:03.5]} 56. Rh7 {[%clk 0:01:17.8]} 56... Rg6 {[%clk 0:00:03.5]} 57.
h5 {[%clk 0:01:13]} 57... Rf6 {[%clk 0:00:03.7]} 58. Kg3 {[%clk 0:01:13]} 58...
Kd4 {[%clk 0:00:03.1]} 59. Rg7 {[%clk 0:01:05.5]} 59... Ke4 {[%clk 0:00:02.8]}
60. Rg6 {[%clk 0:01:01.6]} 60... Rf3+ {[%clk 0:00:03.8]} 61. Kg2 {[%clk
0:01:01.7]} 61... Bh3+ {[%clk 0:00:05.1]} 62. Kg1 {[%clk 0:01:02.8]} 62... Rf8
{[%clk 0:00:04.2]} 63. Rxd6 {[%clk 0:01:02.2]} 63... Rh8 {[%clk 0:00:02.9]} 64.
Rg6 {[%clk 0:01:01.6]} 64... Bc8 {[%clk 0:00:03.2]} 65. c5 {[%clk 0:01:00.1]}
65... Kf4 {[%clk 0:00:04.1]} 66. c6 {[%clk 0:00:59.7]} 66... Rd8 {[%clk
0:00:05]} 67. d6 {[%clk 0:00:59.4]} 67... Ba6 {[%clk 0:00:06.4]} 68. c7 {[%clk
0:00:58.4]} 68... Rd7 {[%clk 0:00:05.8]} 69. Nd5+ {[%clk 0:00:55.4]} 69... Kf3
{[%clk 0:00:06.8]} 70. Nb6 {[%clk 0:00:55]} 70... Rf7 {[%clk 0:00:03.2]} 71. d7
{[%clk 0:00:53.7]} 71... Bb7 {[%clk 0:00:02.9]} 72. d8=Q {[%clk 0:00:51.5]} 1-0